bitfinex/quotes_BTCUSD_20241124
["timestamp","ask_amount","ask_price","bid_price","bid_amount"]
[1732409682756,0.0806,97802.0,97790.0,0.07908886]
[1732409683457,0.0008586,97805.0,97800.0,0.173]
[1732409683691,0.0008586,97805.0,97802.0,0.173]
[1732409683907,0.0008586,97805.0,97803.0,0.10201427]
[1732409684124,0.0008586,97805.0,97804.0,0.15]
[1732409684361,0.0008586,97805.0,97804.0,0.29026901]
[1732409685057,0.0814586,97805.0,97804.0,0.29026901]
[1732409687634,0.08137607,97805.0,97804.0,0.29026901]
[1732409688760,0.08035373,97805.0,97804.0,0.29026901]
[1732409689671,0.08035373,97805.0,97795.0,0.20528367]
[1732409689881,0.08035373,97805.0,97797.0,0.10201427]
[1732409690569,0.08035373,97805.0,97798.0,0.02908373]
[1732409690788,0.08035373,97805.0,97799.0,0.10201427]
[1732409691214,0.08035373,97805.0,97799.0,0.131098]
[1732409691451,0.08035373,97805.0,97800.0,0.02908373]
[1732409691686,0.08035373,97805.0,97800.0,0.131098]
[1732409691911,0.08035373,97805.0,97801.0,0.15]
[1732409692997,0.08035373,97805.0,97796.0,0.15]
[1732409693200,0.08035373,97805.0,97797.0,0.10201427]
[1732409693425,0.08035373,97805.0,97798.0,0.15]
[1732409694301,0.07749873,97805.0,97798.0,0.15]
[1732409695272,0.07749873,97805.0,97796.0,0.15]
[1732409696380,0.0463,97804.0,97796.0,0.15]
[1732409697289,0.0768,97803.0,97796.0,0.15]
[1732409698136,0.07807808,97803.0,97796.0,0.15]
[1732409698569,0.00190953,97799.0,97796.0,0.15]
[1732409699074,0.0768,97798.0,97796.0,0.15]
[1732409699289,0.0768,97798.0,97795.0,0.16073222]
[1732409699290,0.00190953,97796.0,97795.0,0.04067139]
[1732409699709,0.0768,97796.0,97789.0,0.15]
[1732409699935,0.07870953,97796.0,97789.0,0.15]
[1732409700451,0.0768,97796.0,97789.0,0.15]
[1732409702003,0.07870953,97796.0,97789.0,0.15]
[1732409702217,0.07870953,97796.0,97789.0,0.19054105]
[1732409702872,0.0768,97796.0,97789.0,0.19054105]
[1732409704224,0.07665068,97796.0,97789.0,0.19054105]
[1732409704885,0.07665068,97796.0,97789.0,0.04054105]
[1732409705106,0.07665068,97796.0,97786.0,0.07883152]
[1732409707279,0.07665068,97796.0,97787.0,0.55423673]
[1732409707713,0.07665068,97796.0,97786.0,0.07883152]
[1732409707714,0.07665068,97796.0,97789.0,0.15]
[1732409708134,0.07665068,97796.0,97789.0,0.55423673]
[1732409708774,0.0463,97795.0,97789.0,0.55423673]
[1732409709223,0.0768,97794.0,97791.0,0.15]
[1732409709448,0.0768,97794.0,97790.0,0.40423673]
[1732409709657,0.0768,97794.0,97789.0,0.55423673]
[1732409710306,0.0768,97794.0,97790.0,0.40434629]
[1732409710512,0.0768,97794.0,97791.0,0.15]
[1732409710771,0.0768,97794.0,97791.0,0.55434629]
[1732409710978,0.0768,97794.0,97791.0,0.15]
[1732409711234,0.07639163,97794.0,97791.0,0.55434629]
[1732409711930,0.07639163,97794.0,97791.0,0.151716]
[1732409712144,0.07639163,97794.0,97791.0,0.55606229]
[1732409712598,0.07639163,97794.0,97793.0,0.15]
[1732409713071,0.19970578,97804.0,97795.0,0.00496]
[1732409713284,0.19970578,97804.0,97802.0,0.40422677]
[1732409713503,0.19970578,97804.0,97796.0,0.13189183]
[1732409714388,0.0751,97803.0,97796.0,0.13189183]
[1732409716053,0.07295454,97803.0,97796.0,0.13189183]
[1732409719484,0.07036188,97803.0,97796.0,0.13189183]
[1732409722101,0.0701816,97803.0,97796.0,0.13189183]
[1732409723200,0.0701816,97803.0,97795.0,0.00496]
[1732409723650,0.0701816,97803.0,97802.0,0.40426873]
[1732409723873,0.0701816,97803.0,97800.0,0.40426873]
[1732409724094,0.0701816,97803.0,97796.0,0.0017162]
[1732409724095,0.0710397,97803.0,97797.0,0.40426873]
[1732409724763,0.0710397,97803.0,97796.0,0.40598493]
[1732409725203,0.0710397,97803.0,97797.0,0.40426873]
[1732409725656,0.0710397,97803.0,97796.0,0.0017162]
[1732409725657,0.0710397,97803.0,97796.0,0.40598493]
[1732409725894,0.0492,97802.0,97796.0,0.40598493]
[1732409726357,0.0804,97801.0,97797.0,0.40426873]
[1732409726583,0.0804,97801.0,97796.0,0.40598493]
[1732409726822,0.0804,97801.0,97796.0,0.0017162]
[1732409727523,0.07784382,97801.0,97796.0,0.0017162]
[1732409729971,0.20161531,97797.0,97796.0,0.0017162]
[1732409730194,0.24821531,97797.0,97796.0,0.0017162]
[1732409730626,0.33081531,97797.0,97796.0,0.0017162]
[1732409733007,0.43282958,97797.0,97796.0,0.0017162]
[1732409733904,0.43282958,97797.0,97796.0,0.00128799]
[1732409735462,0.32890578,97797.0,97796.0,0.00128799]
[1732409738407,0.33081531,97797.0,97796.0,0.00128799]
[1732409738627,0.43282958,97797.0,97796.0,0.00128799]
[1732409747751,0.63282958,97797.0,97796.0,0.00128799]
[1732409749824,0.0826,97797.0,97796.0,0.00128799]
[1732409751421,0.28230578,97797.0,97796.0,0.00128799]
[1732409751636,0.08162502,97797.0,97796.0,0.00128799]
[1732409751851,0.2813308,97797.0,97796.0,0.00128799]
[1732409752292,0.08162502,97797.0,97796.0,0.00128799]
[1732409752723,0.2813308,97797.0,97796.0,0.00128799]
[1732409754163,0.08162502,97797.0,97796.0,0.00128799]
[1732409754361,0.2813308,97797.0,97796.0,0.00128799]
[1732409755680,0.28324033,97797.0,97796.0,0.04293283]
[1732409755878,0.2813308,97797.0,97796.0,0.04293283]
[1732409756311,0.2813308,97797.0,97796.0,0.00128799]
[1732409757979,0.2813308,97797.0,97795.0,0.00496]
[1732409758211,0.2813308,97797.0,97773.0,9.047e-05]
[1732409758449,0.19970578,97789.0,97787.0,0.12011357]
[1732409758759,0.19970578,97790.0,97782.0,0.08754856]
[1732409760042,0.08162502,97797.0,97782.0,0.08754856]
[1732409760254,0.19970578,97790.0,97787.0,0.12011357]
[1732409760477,0.08162502,97797.0,97785.0,9.047e-05]
[1732409761122,0.08162502,97797.0,97782.0,0.08754856]
[1732409764256,0.08162502,97797.0,97787.0,0.12011357]
[1732409765902,0.19970578,97796.0,97787.0,0.12011357]
[1732409766574,0.19970578,97790.0,97787.0,0.12011357]
[1732409766787,0.19970578,97790.0,97782.0,0.08754856]
[1732409767446,0.19970578,97790.0,97782.0,0.04194856]
[1732409767872,0.19970578,97790.0,97780.0,0.12011357]
[1732409768091,0.19970578,97790.0,97780.0,0.22212784]
[1732409768334,0.19970578,97790.0,97789.0,0.40457276]
[1732409768776,0.00190953,97788.0,97774.0,0.15]
[1732409769001,0.0822,97787.0,97774.0,0.15]
[1732409769253,0.0822,97787.0,97779.0,0.15]
[1732409769470,0.0822,97787.0,97784.0,0.40508964]
[1732409769910,0.00190953,97785.0,97783.0,0.40508964]
[1732409770336,0.00190953,97785.0,97779.0,0.15]
[1732409770337,0.00190953,97785.0,97784.0,0.40508964]
[1732409770768,0.0779,97785.0,97783.0,0.40508964]
[1732409771003,0.0779,97785.0,97782.0,0.40508964]
[1732409773719,0.07980953,97785.0,97782.0,0.40508964]
[1732409774173,0.07980953,97785.0,97782.0,0.40523677]
[1732409774631,0.0779,97785.0,97782.0,0.40523677]
[1732409775315,0.0779,97785.0,97780.0,0.001718]
[1732409775316,0.0779,97785.0,97783.0,0.40523677]
[1732409776057,0.19970578,97790.0,97780.0,0.001718]
[1732409776273,0.19970578,97790.0,97787.0,0.40523806]
[1732409776490,0.19970578,97790.0,97788.0,0.40523806]
[1732409776959,0.19970578,97790.0,97786.0,0.40523806]
[1732409777176,0.19970578,97791.0,97788.0,0.40523806]
[1732409777419,0.19970578,97790.0,97781.0,0.15]
[1732409777644,0.083,97794.0,97781.0,0.15]
[1732409778099,0.19970578,97791.0,97781.0,0.15]
[1732409778346,0.083,97794.0,97781.0,0.15]
[1732409778582,0.19970578,97791.0,97781.0,0.15]
[1732409779486,0.19970578,97790.0,97781.0,0.15]
[1732409780810,0.12557824,97789.0,97780.0,0.001718]
[1732409781030,0.00190953,97787.0,97784.0,0.40520656]
[1732409781310,0.00190953,97785.0,97783.0,0.40520656]
[1732409781555,0.0778,97786.0,97783.0,0.40520656]
[1732409783456,0.0778,97786.0,97783.0,0.4052934]
[1732409783689,0.0778,97786.0,97784.0,0.4052934]
[1732409785356,0.0778,97786.0,97785.0,0.4052934]
[1732409785594,0.0778,97786.0,97784.0,0.4052934]
[1732409785829,0.0778,97786.0,97783.0,0.4070114]
[1732409786044,0.0778,97786.0,97783.0,0.44779562]
[1732409786297,0.0778,97786.0,97783.0,0.4070114]
[1732409786773,0.0778,97786.0,97784.0,0.4052934]
[1732409787930,0.0778,97786.0,97783.0,0.001718]
[1732409788156,0.0778,97786.0,97784.0,0.40532798]
[1732409788863,0.0778,97786.0,97785.0,0.40532798]
[1732409789097,0.0778,97786.0,97784.0,0.40532798]
[1732409789310,0.0778,97786.0,97785.0,0.40532798]
[1732409789517,0.0778,97786.0,97784.0,0.40532798]
[1732409790455,0.0778,97786.0,97785.0,0.40534189]
[1732409790674,0.0778,97786.0,97783.0,0.001718]
[1732409791655,0.0778,97786.0,97785.0,0.40535479]
[1732409791888,0.0778,97786.0,97784.0,0.40535479]
[1732409792157,0.0778,97786.0,97785.0,0.40535479]
[1732409792370,0.0778,97786.0,97783.0,0.001718]
[1732409792371,0.000859,97787.0,97783.0,0.001718]
[1732409793757,0.000859,97787.0,97783.0,0.10373227]
[1732409793984,0.000859,97787.0,97784.0,0.15]
[1732409796539,0.000859,97787.0,97785.0,0.0019317]
[1732409797353,0.000859,97787.0,97786.0,0.56086037]
[1732409797573,0.000859,97787.0,97786.0,0.25210474]
[1732409797814,0.000859,97787.0,97786.0,0.56279207]
[1732409798045,0.000859,97787.0,97786.0,0.5627016]
[1732409799001,0.000859,97787.0,97786.0,0.25394597]
[1732409799436,0.000859,97787.0,97786.0,0.5627016]
[1732409799622,0.000859,97787.0,97786.0,0.25394597]
[1732409800348,0.000859,97787.0,97786.0,0.56248438]
[1732409800814,0.000859,97787.0,97786.0,0.25394597]
[1732409801052,0.000859,97787.0,97786.0,0.25413253]
[1732409802161,0.000859,97787.0,97786.0,0.00018656]
[1732409802665,0.078659,97787.0,97786.0,0.00018656]
[1732409808003,0.000859,97787.0,97786.0,0.00018656]
[1732409809637,0.000859,97787.0,97786.0,0.25220083]
[1732409809859,0.000859,97787.0,97786.0,0.2522913]
[1732409810309,0.000859,97787.0,97786.0,0.25220083]
[1732409811909,0.000859,97787.0,97786.0,0.25201427]
[1732409815410,0.0006471,97787.0,97786.0,0.25201427]
[1732409815624,0.00083771,97797.0,97787.0,0.15]
[1732409815886,0.00083771,97797.0,97796.0,0.40501045]
[1732409816110,0.00083771,97797.0,97796.0,0.15]
[1732409817084,0.00083771,97797.0,97796.0,0.55499842]
[1732409817326,0.00083771,97797.0,97796.0,0.15]
[1732409817532,0.00083771,97797.0,97780.0,0.4050024]
[1732409817827,0.00083771,97797.0,97781.0,0.10201427]
[1732409818778,0.00076098,97797.0,97781.0,0.10201427]
[1732409819387,0.00076098,97797.0,97782.0,0.4050024]
[1732409819618,0.00076098,97797.0,97783.0,0.10201427]
[1732409820727,0.00076098,97797.0,97784.0,0.15]
[1732409820945,0.00076098,97797.0,97785.0,0.10201427]
[1732409821170,0.00076098,97797.0,97785.0,0.10160444]
[1732409822047,0.00076098,97797.0,97786.0,0.15]
[1732409824091,0.0755321,97800.0,97786.0,0.15]
[1732409826832,0.0755321,97800.0,97790.0,0.15761308]
[1732409827529,0.0755321,97800.0,97791.0,0.15]
[1732409827740,0.0755321,97800.0,97797.0,0.40481093]
[1732409827958,0.0755321,97800.0,97798.0,0.40481093]
[1732409828629,0.0755321,97800.0,97798.0,0.40471331]
[1732409829097,0.0755321,97800.0,97797.0,0.40471331]
[1732409829322,0.0755321,97800.0,97798.0,0.40471331]
[1732409832533,0.0755321,97800.0,97799.0,0.40471331]
[1732409833360,0.0755321,97800.0,97791.0,0.15]
[1732409833564,0.0755321,97800.0,97799.0,0.40486754]
[1732409833771,0.0755321,97800.0,97791.0,0.15]
[1732409835138,0.0763911,97800.0,97791.0,0.15]
[1732409840423,0.0784,97798.0,97790.0,0.19211148]
[1732409840679,0.0784,97798.0,97791.0,0.15]
[1732409847008,0.0784,97798.0,97791.0,0.1517178]
[1732409851201,0.0784,97798.0,97791.0,0.46044468]
[1732409851410,0.0784,97798.0,97792.0,0.03151743]
[1732409852041,0.0784,97798.0,97792.0,0.18151743]
[1732409852453,0.0784,97798.0,97793.0,0.15]
[1732409852649,0.0784,97798.0,97794.0,0.01395472]
[1732409854376,0.0735816,97798.0,97794.0,0.01395472]
[1732409863420,0.000859,97800.0,97794.0,0.01395472]
[1732409863421,0.048,97797.0,97794.0,0.01395472]
[1732409863627,0.0775,97796.0,97794.0,0.01395472]
[1732409864368,0.0775,97796.0,97792.0,0.30879202]
[1732409864583,0.02071964,97857.0,97811.0,1.47862722]
[1732409864799,0.00119269,97816.0,97811.0,1.47862722]
[1732409865222,0.10320696,97813.0,97811.0,1.47862722]
[1732409865430,0.10320696,97813.0,97811.0,1.12433357]
[1732409867539,0.1255,97812.0,97811.0,1.12433357]
[1732409867760,0.22751427,97812.0,97811.0,1.12433357]
[1732409870798,0.22837317,97812.0,97811.0,1.12433357]
[1732409871686,0.42837317,97812.0,97811.0,1.12433357]
[1732409875862,0.43290961,97812.0,97811.0,1.12433357]
[1732409876744,0.45590961,97812.0,97811.0,1.12433357]
[1732409880254,0.45590961,97812.0,97811.0,1.04623357]
[1732409880471,0.45590961,97812.0,97811.0,0.96813357]
[1732409880699,0.45790961,97812.0,97811.0,0.96813357]
[1732409881645,0.65790961,97812.0,97811.0,0.96813357]
[1732409882088,0.65790961,97812.0,97811.0,0.96985117]
[1732409882544,0.85790961,97812.0,97811.0,0.96985117]
[1732409883619,0.85590961,97812.0,97811.0,0.96985117]
[1732409885714,0.85790961,97812.0,97811.0,0.96985117]
[1732409887290,0.85590961,97812.0,97811.0,0.96985117]
[1732409888418,0.85590961,97812.0,97811.0,0.97185117]
[1732409889971,0.65590961,97812.0,97811.0,0.97185117]
[1732409890614,0.85590961,97812.0,97811.0,0.97185117]
[1732409892383,0.85790961,97812.0,97811.0,0.97185117]
[1732409895274,0.85590961,97812.0,97811.0,0.97185117]
[1732409896643,0.85790961,97812.0,97811.0,0.97185117]
[1732409898225,0.85790961,97812.0,97811.0,0.97144371]
[1732409900283,0.85590961,97812.0,97811.0,0.97144371]
[1732409901051,0.85790961,97812.0,97811.0,0.97144371]
[1732409901400,0.85590961,97812.0,97811.0,0.97144371]
[1732409901615,0.85790961,97812.0,97811.0,0.97144371]
[1732409901995,0.85590961,97812.0,97811.0,0.97144371]
[1732409904754,0.85790961,97812.0,97811.0,0.97144371]
[1732409906338,0.85590961,97812.0,97811.0,0.97144371]
[1732409907182,0.85790961,97812.0,97811.0,0.97144371]
[1732409907422,0.85590961,97812.0,97811.0,0.97144371]
[1732409907659,0.85790961,97812.0,97811.0,0.97144371]
[1732409909482,0.85590961,97812.0,97811.0,0.97144371]
[1732409911496,1.00590961,97812.0,97811.0,0.97144371]
[1732409913090,1.00790961,97812.0,97811.0,0.97144371]
[1732409917005,1.09588548,97812.0,97811.0,0.97144371]
[1732409917230,1.00790961,97812.0,97811.0,0.97144371]
[1732409921220,0.50740961,97812.0,97811.0,0.97144371]
[1732409921428,0.30740961,97812.0,97811.0,0.97144371]
[1732409922287,0.50740961,97812.0,97811.0,0.97144371]
[1732409922701,0.53040961,97812.0,97811.0,0.97144371]
[1732409922919,0.53040961,97812.0,97811.0,0.63771963]
[1732409923797,0.33040961,97812.0,97811.0,0.63771963]
[1732409924001,0.53040961,97812.0,97811.0,0.63771963]
[1732409924458,0.33040961,97812.0,97811.0,0.63771963]
[1732409924676,0.53040961,97812.0,97811.0,0.63771963]
[1732409925292,0.33040961,97812.0,97811.0,0.63771963]
[1732409925528,0.53040961,97812.0,97811.0,0.63771963]
[1732409926613,0.53040961,97812.0,97811.0,0.63726812]
[1732409927057,0.54950189,97812.0,97811.0,0.58726812]
[1732409927907,0.55050189,97812.0,97811.0,0.58726812]
[1732409929134,0.55150189,97812.0,97811.0,0.58726812]
[1732409929560,0.55050189,97812.0,97811.0,0.58726812]
[1732409931417,0.5504988,97812.0,97811.0,0.58726812]
[1732409932405,0.7514988,97812.0,97811.0,0.58726812]
[1732409934485,0.9014988,97812.0,97811.0,0.58726812]
[1732409935402,0.9015003,97812.0,97811.0,0.58726812]
[1732409935817,0.8995003,97812.0,97811.0,0.58726812]
[1732409936274,0.88040961,97812.0,97811.0,0.58726812]
[1732409936478,0.88240961,97812.0,97811.0,0.58726812]
[1732409946637,0.88140961,97812.0,97811.0,0.58726812]
[1732409947338,0.68040961,97812.0,97811.0,0.58726812]
[1732409947580,0.88040961,97812.0,97811.0,0.58726812]
[1732409947802,0.88040961,97812.0,97811.0,0.66796812]
[1732409948510,0.89950365,97812.0,97811.0,0.66796812]
[1732409950482,0.90050365,97812.0,97811.0,0.66796812]
[1732409950693,0.90050365,97812.0,97811.0,0.58726812]
[1732409951388,0.90150365,97812.0,97811.0,0.58726812]
[1732409951622,0.88240961,97812.0,97811.0,0.58726812]
[1732409953875,0.88040961,97812.0,97811.0,0.58726812]
[1732409954103,0.88240961,97812.0,97811.0,0.58726812]
[1732409959697,0.88040961,97812.0,97811.0,0.58726812]
[1732409959912,0.88240961,97812.0,97811.0,0.58726812]
[1732409961035,0.88040961,97812.0,97811.0,0.58726812]
[1732409961525,0.90152061,97812.0,97811.0,0.58726812]
[1732409962515,0.88240961,97812.0,97811.0,0.58726812]
[1732409965492,0.68040961,97812.0,97811.0,0.71536812]
[1732409966372,0.68040961,97812.0,97811.0,0.71312653]
[1732409966667,0.89498357,97812.0,97811.0,0.71312653]
[1732409966878,0.89953694,97812.0,97811.0,0.71312653]
[1732409969022,0.69953694,97812.0,97811.0,0.71312653]
[1732409969229,0.89953694,97812.0,97811.0,0.71312653]
[1732409969456,0.74953694,97812.0,97811.0,0.71312653]
[1732409970278,0.75053694,97812.0,97811.0,0.71312653]
[1732409970480,0.75053694,97812.0,97811.0,0.66362653]
[1732409970689,0.73142654,97812.0,97811.0,0.58502653]
[1732409970910,0.73242654,97812.0,97811.0,0.58502653]
[1732409971549,0.75153518,97812.0,97811.0,0.58502653]
[1732409971719,0.74698181,97812.0,97811.0,0.58502653]
[1732409972527,0.72787317,97812.0,97811.0,0.58502653]
[1732409975779,0.72587317,97812.0,97811.0,0.58502653]
[1732409975983,0.72787317,97812.0,97811.0,0.58502653]
[1732409976555,0.72587317,97812.0,97811.0,0.58502653]
[1732409976974,0.72587317,97812.0,97811.0,0.58461731]
[1732409978501,0.72587317,97812.0,97811.0,0.35294572]
[1732409979642,0.32587317,97812.0,97811.0,0.35294572]
[1732409980111,0.52587317,97812.0,97811.0,0.35294572]
[1732409981880,0.32587317,97812.0,97811.0,0.35294572]
[1732409982134,0.30287317,97812.0,97811.0,0.47534572]
[1732409982815,0.98137317,97812.0,97811.0,0.35294572]
[1732409983486,1.00337317,97812.0,97811.0,0.35294572]
[1732409984586,1.00437317,97812.0,97811.0,0.35294572]
[1732409990067,1.00237317,97812.0,97811.0,0.35294572]
[1732409990274,1.00437317,97812.0,97811.0,0.35294572]
[1732409992843,1.00237317,97812.0,97811.0,0.35294572]
[1732409993251,1.00437317,97812.0,97811.0,0.35294572]
[1732409993696,1.00237317,97812.0,97811.0,0.35294572]
[1732409994155,1.00437317,97812.0,97811.0,0.35294572]
[1732409995200,0.92737317,97812.0,97811.0,0.35294572]
[1732409995422,0.87787317,97812.0,97811.0,0.35294572]
[1732409996097,0.87787317,97812.0,97811.0,0.35114539]
[1732409996328,0.87787317,97812.0,97811.0,0.3473183]
[1732409996851,0.87787317,97812.0,97811.0,0.34607342]
[1732409997266,0.67787317,97812.0,97811.0,0.34386094]
[1732409997481,0.87787317,97812.0,97811.0,0.34386094]
[1732409999358,0.87587317,97812.0,97811.0,0.34386094]
[1732410000028,0.67587317,97812.0,97811.0,0.34386094]
[1732410000914,0.67587317,97812.0,97811.0,0.15035562]
[1732410004908,0.32587317,97812.0,97811.0,0.15035562]
[1732410005139,0.32587317,97812.0,97811.0,0.19775562]
[1732410006050,0.30287317,97812.0,97811.0,0.19775562]
[1732410008011,0.10287317,97812.0,97811.0,0.19775562]
[1732410008216,0.30287317,97812.0,97811.0,0.19775562]
[1732410008632,0.30287317,97812.0,97811.0,0.27915562]
[1732410017770,0.30736767,97812.0,97811.0,0.27915562]
[1732410028159,0.30736767,97812.0,97811.0,0.07311877]
[1732410029487,0.30736767,97812.0,97798.0,0.04058908]
[1732410029701,0.10320696,97811.0,97792.0,0.0017178]
[1732410029918,0.10779069,97811.0,97792.0,0.0017178]
[1732410031306,0.10779069,97811.0,97793.0,0.0493]
[1732410031522,0.10779069,97811.0,97794.0,0.0823]
[1732410032208,0.10779069,97811.0,97796.0,0.0823]
[1732410040996,0.10676832,97811.0,97796.0,0.0823]
[1732410042125,0.10676832,97811.0,97796.0,0.0840178]
[1732410042343,0.15256832,97811.0,97796.0,0.0840178]
[1732410051750,0.15256832,97811.0,97790.0,0.07880654]
[1732410052203,0.15256832,97811.0,97791.0,0.00102244]
[1732410053101,0.2,97807.0,97800.0,0.07880654]
[1732410053327,0.2,97806.0,97800.0,0.07880654]
[1732410053556,0.20461069,97806.0,97800.0,0.07880654]
[1732410054796,0.00461069,97806.0,97801.0,0.0762224]
[1732410055227,0.2008589,97811.0,97801.0,0.0762224]
[1732410055495,0.00461068,97805.0,97801.0,0.0762224]
[1732410055728,0.00461073,97810.0,97801.0,0.0762224]
[1732410055954,0.30287317,97811.0,97801.0,0.0762224]
[1732410055955,0.00461067,97804.0,97801.0,0.0762224]
[1732410056175,0.30287317,97811.0,97801.0,0.0762224]
[1732410056606,0.00461073,97810.0,97801.0,0.0762224]
[1732410057495,0.00461073,97810.0,97801.0,0.0752]
[1732410058555,0.00461073,97810.0,97800.0,0.07880654]
[1732410058796,0.00461073,97810.0,97800.0,0.12040753]
[1732410059236,0.00461073,97810.0,97800.0,0.04160099]
[1732410059657,0.00461073,97810.0,97796.0,0.1517178]
[1732410059658,0.30287317,97811.0,97796.0,0.1517178]
[1732410060554,0.30287317,97811.0,97796.0,0.0017178]
[1732410062820,0.30287317,97811.0,97796.0,0.19247203]
[1732410063045,0.30287317,97811.0,97796.0,0.1517178]
[1732410064112,0.30287317,97811.0,97796.0,0.0017178]
[1732410065018,0.30287317,97811.0,97800.0,0.07880654]
[1732410065511,0.00464246,97810.0,97801.0,0.00102234]
[1732410065776,0.0489,97809.0,97800.0,0.07880654]
[1732410066190,0.00464244,97808.0,97800.0,0.07880654]
[1732410066399,0.0489,97809.0,97800.0,0.07880654]
[1732410066623,0.0489,97809.0,97801.0,0.00102235]
[1732410067046,0.00464244,97808.0,97801.0,0.00102235]
[1732410067480,0.0489,97809.0,97801.0,0.00102235]
[1732410067690,0.0489,97809.0,97800.0,0.07880654]
[1732410068128,0.00464244,97808.0,97800.0,0.07880654]
[1732410068594,0.0489,97809.0,97800.0,0.07880654]
[1732410069564,0.04846927,97809.0,97800.0,0.07880654]
[1732410069790,0.00464244,97808.0,97800.0,0.07880654]
[1732410070255,0.00464244,97808.0,97801.0,0.00102235]
[1732410071655,0.00464244,97808.0,97796.0,0.04383493]
[1732410071656,0.00464244,97808.0,97798.0,0.07880654]
[1732410081310,0.00464244,97808.0,97798.0,0.15761308]
[1732410081542,0.00464244,97808.0,97798.0,0.56299487]
[1732410081762,0.0008589,97811.0,97798.0,0.56299487]
[1732410081991,0.00464309,97807.0,97799.0,0.0753]
[1732410082224,0.03866902,97814.0,97799.0,0.0753]
[1732410082686,0.00464138,97813.0,97799.0,0.0753]
[1732410083162,0.00464138,97813.0,97803.0,0.07880654]
[1732410084597,0.2,97820.0,97803.0,0.07880654]
[1732410084822,0.2,97826.0,97810.0,0.07880654]
[1732410085039,0.00464702,97819.0,97815.0,0.07880654]
[1732410085275,0.00464702,97819.0,97805.0,0.001]
[1732410085276,0.0487,97824.0,97811.0,0.40538179]
[1732410085495,0.0487,97824.0,97805.0,0.001]
[1732410085496,0.0487,97824.0,97815.0,0.07880654]
[1732410085745,0.00464706,97823.0,97815.0,0.07880654]
[1732410088166,0.0487,97827.0,97815.0,0.07880654]
[1732410088437,0.00464705,97822.0,97815.0,0.07880654]
[1732410088660,0.00464707,97824.0,97815.0,0.15761308]
[1732410088897,0.0487,97827.0,97815.0,0.15761308]
[1732410088898,0.00464704,97821.0,97815.0,0.15761308]
[1732410089095,0.0487,97827.0,97811.0,0.07880654]
[1732410089343,0.0487,97827.0,97815.0,0.15761308]
[1732410089556,0.00467866,97824.0,97815.0,0.15761308]
[1732410089787,0.000859,97823.0,97815.0,0.15761308]
[1732410090205,0.00467864,97822.0,97815.0,0.15761308]
[1732410090661,0.00330506,97822.0,97815.0,0.15761308]
[1732410090896,0.000859,97823.0,97815.0,0.15761308]
[1732410096244,0.0487,97827.0,97815.0,0.15761308]
[1732410096245,0.0454179,97827.0,97815.0,0.15761308]
[1732410097152,0.0404179,97827.0,97815.0,0.15761308]
[1732410100189,0.0354179,97827.0,97815.0,0.15761308]
[1732410101605,0.0354179,97827.0,97815.0,0.15933048]
[1732410101834,0.0362766,97827.0,97815.0,0.15933048]
[1732410104194,0.00669417,97826.0,97815.0,0.15933048]
[1732410104449,0.0044995,97826.0,97815.0,0.08052394]
[1732410105165,0.0362766,97827.0,97815.0,0.08052394]
[1732410105614,0.00449979,97826.0,97815.0,0.08052394]
[1732410106649,0.0362766,97827.0,97815.0,0.08052394]
[1732410111946,0.0362766,97827.0,97815.0,0.48499986]
[1732410112162,0.0362766,97827.0,97815.0,0.08052394]
[1732410112391,0.0362766,97827.0,97815.0,0.48499986]
[1732410112636,0.0362766,97827.0,97815.0,0.08052394]
[1732410113504,0.0362766,97827.0,97816.0,0.40410266]
[1732410113715,0.0362766,97827.0,97815.0,0.08052394]
[1732410113716,0.0362766,97827.0,97815.0,0.4846266]
[1732410113958,0.0362766,97827.0,97817.0,0.07880654]
[1732410114184,0.00471669,97826.0,97817.0,0.07880654]
[1732410114861,0.0362766,97827.0,97817.0,0.07880654]
[1732410115370,0.00471669,97826.0,97817.0,0.07880654]
[1732410115864,0.0008587,97827.0,97817.0,0.07880654]
[1732410116333,0.00472109,97826.0,97817.0,0.07880654]
[1732410116753,0.0008587,97827.0,97817.0,0.07880654]
[1732410116972,0.00472678,97825.0,97818.0,0.0488]
[1732410117194,0.0008587,97827.0,97818.0,0.1988]
[1732410117429,0.0008587,97827.0,97820.0,0.001]
[1732410118766,0.0008587,97827.0,97820.0,0.002]
[1732410119620,0.0008587,97827.0,97826.0,0.002]
[1732410119832,0.0008587,97827.0,97819.0,0.2303]
[1732410119833,0.0008587,97827.0,97825.0,0.002]
[1732410120516,0.0008587,97827.0,97826.0,0.2811]
[1732410120760,0.0008587,97827.0,97826.0,0.38311427]
[1732410120979,0.0008587,97827.0,97826.0,0.43454936]
[1732410122293,0.0008587,97827.0,97826.0,0.40954936]
[1732410122497,0.0008587,97827.0,97826.0,0.33231427]
[1732410124786,0.0008587,97827.0,97826.0,0.35531427]
[1732410125817,0.0008587,97827.0,97826.0,0.27501427]
[1732410128137,0.0008587,97827.0,97826.0,0.31559286]
[1732410129545,0.0008587,97827.0,97826.0,0.32897012]
[1732410141675,0.0008587,97827.0,97826.0,0.33097012]
[1732410141862,0.0008587,97827.0,97826.0,0.32897012]
[1732410142584,0.0008587,97827.0,97826.0,0.33097012]
[1732410142822,0.0008587,97827.0,97826.0,0.32897012]
[1732410143998,0.0008587,97827.0,97826.0,0.33097012]
[1732410145608,0.0008587,97827.0,97826.0,0.32897012]
[1732410146542,0.0131564,97847.0,97826.0,0.32897012]
[1732410146543,0.0131564,97847.0,97838.0,0.023]
[1732410146771,0.0131564,97847.0,97842.0,0.023]
[1732410146999,0.0131564,97847.0,97843.0,0.10201427]
[1732410147245,0.0131564,97847.0,97844.0,0.023]
[1732410147507,0.0131564,97847.0,97845.0,0.10201427]
[1732410147733,0.0131564,97847.0,97846.0,0.023]
[1732410147957,0.0131564,97847.0,97846.0,0.12501427]
[1732410149536,0.0140152,97847.0,97846.0,0.52900395]
[1732410149997,0.0140152,97847.0,97846.0,0.12501427]
[1732410150459,0.0140152,97847.0,97846.0,0.023]
[1732410151351,0.0140152,97847.0,97845.0,0.023]
[1732410152684,0.0140152,97847.0,97845.0,0.42698968]
[1732410152870,0.0140152,97847.0,97845.0,0.023]
[1732410153618,0.0140152,97847.0,97844.0,0.40398968]
[1732410153841,0.0140152,97847.0,97841.0,0.15]
[1732410154071,0.1241,97846.0,97841.0,0.15]
[1732410154991,0.1241,97846.0,97840.0,0.04060934]
[1732410155228,0.2140152,97847.0,97833.0,0.40398968]
[1732410155508,0.283,97846.0,97830.0,0.07880654]
[1732410155723,0.083,97845.0,97830.0,0.12090862]
[1732410158241,0.0485,97844.0,97835.0,0.07880654]
[1732410158477,0.0485,97844.0,97830.0,0.04210208]
[1732410158478,0.0485,97844.0,97834.0,0.07880654]
[1732410158712,0.0140152,97847.0,97834.0,0.15761308]
[1732410159826,0.0140152,97847.0,97837.0,0.40398968]